bitfinex/quotes_BTCUSD_20250109
["timestamp","ask_amount","ask_price","bid_price","bid_amount"]
[1736397683712,0.10429976,94472.0,94466.0,0.211716]
[1736397684666,0.10429976,94472.0,94467.0,0.211714]
[1736397684869,0.10429976,94472.0,94468.0,0.211711]
[1736397685011,0.01314758,94471.0,94468.0,0.211711]
[1736397686648,0.01314758,94471.0,94468.0,0.213711]
[1736397688067,0.10429976,94472.0,94468.0,0.425422]
[1736397689402,0.10429976,94472.0,94468.0,0.423422]
[1736397689563,0.10429976,94472.0,94468.0,0.425422]
[1736397693614,0.10429976,94472.0,94468.0,0.213711]
[1736397695706,0.10417236,94472.0,94468.0,0.213711]
[1736397698057,0.10417236,94472.0,94468.0,0.425422]
[1736397698768,0.10417236,94472.0,94468.0,0.213711]
[1736397699378,0.10417236,94472.0,94468.0,0.425422]
[1736397700309,0.01043224,94471.0,94468.0,0.425422]
[1736397701982,0.01043224,94471.0,94468.0,0.423422]
[1736397702185,0.01043224,94471.0,94468.0,0.425422]
[1736397702389,0.10417236,94472.0,94468.0,0.425422]
[1736397703469,0.10417236,94472.0,94468.0,0.423422]
[1736397703792,0.10417236,94472.0,94468.0,0.425422]
[1736397713787,0.00015,94477.0,94476.0,0.34216466]
[1736397716713,0.00015,94477.0,94476.0,0.34416466]
[1736397716888,0.00015,94477.0,94476.0,0.34216466]
[1736397717103,0.00015,94477.0,94476.0,0.34916466]
[1736397717858,0.00015,94477.0,94476.0,0.34216466]
[1736397718609,0.00015,94477.0,94476.0,0.34416466]
[1736397719148,0.00015,94477.0,94476.0,0.34216466]
[1736397719355,0.00015,94477.0,94476.0,0.34916466]
[1736397719635,0.00015,94477.0,94476.0,0.35116466]
[1736397731658,0.01672858,94477.0,94476.0,0.35116466]
[1736397735057,0.00015,94477.0,94476.0,0.35116466]
[1736397741476,0.01672856,94477.0,94476.0,0.35116466]
[1736397744935,0.00015,94477.0,94476.0,0.35116466]
[1736397747404,0.00015,94477.0,94476.0,0.34916466]
[1736397747621,0.00015,94477.0,94476.0,0.34216466]
[1736397747836,0.00015,94477.0,94476.0,0.34416466]
[1736397748081,0.00015,94477.0,94476.0,0.35116466]
[1736397751555,0.01672892,94477.0,94476.0,0.35116466]
[1736397754937,0.00015,94477.0,94476.0,0.35116466]
[1736397756941,0.00015,94477.0,94476.0,0.009]
[1736397757471,0.12563296,94477.0,94476.0,0.009]
[1736397757680,0.12563296,94477.0,94476.0,0.007]
[1736397757897,0.12563296,94477.0,94465.0,0.1463385]
[1736397758103,0.0213332,94477.0,94476.0,0.002]
[1736397758303,0.0213332,94477.0,94476.0,0.008]
[1736397758525,0.12563296,94477.0,94466.0,0.05167166]
[1736397758742,0.16850713,94476.0,94467.0,0.211714]
[1736397758956,0.16850713,94476.0,94467.0,0.27958088]
[1736397761491,0.16850713,94476.0,94467.0,0.49129488]
[1736397762352,0.16850713,94476.0,94467.0,0.49229488]
[1736397763360,0.01658078,94474.0,94467.0,0.49229488]
[1736397763591,0.12389395,94473.0,94467.0,0.49229488]
[1736397763927,0.12389395,94473.0,94467.0,0.424428]
[1736397764593,0.12389395,94473.0,94467.0,0.423428]
[1736397764950,0.12389395,94473.0,94467.0,0.425428]
[1736397766955,0.12389395,94473.0,94467.0,0.213714]
[1736397767153,0.12389395,94473.0,94471.0,0.211704]
[1736397768257,0.10429976,94473.0,94471.0,0.211704]
[1736397768453,0.10429976,94473.0,94471.0,0.213704]
[1736397770734,0.00015,94477.0,94476.0,0.33846466]
[1736397771589,0.01672816,94477.0,94476.0,0.33846466]
[1736397772216,0.01672816,94477.0,94476.0,0.53806466]
[1736397772419,1.6e-07,94477.0,94476.0,0.86536442]
[1736397772536,0.09480472,94501.0,94500.0,0.26331166]
[1736397772733,0.09480472,94501.0,94500.0,0.39051166]
[1736397773351,0.01106567,94503.0,94502.0,0.13327166]
[1736397773713,0.01106567,94503.0,94502.0,0.1343297]
[1736397774888,0.01111568,94503.0,94502.0,0.1393297]
[1736397775270,0.01111568,94503.0,94502.0,0.1343297]
[1736397775897,0.01111568,94503.0,94502.0,0.1453297]
[1736397776623,0.01111568,94503.0,94502.0,0.15575456]
[1736397777064,0.01111568,94503.0,94502.0,0.14775456]
[1736397777262,0.01111568,94503.0,94502.0,0.14475456]
[1736397777463,0.01111568,94503.0,94502.0,0.15375456]
[1736397777747,0.01111568,94503.0,94502.0,0.1463297]
[1736397777951,0.01111568,94503.0,94502.0,0.14527166]
[1736397778117,0.01111568,94503.0,94502.0,0.14227166]
[1736397778551,0.01111568,94503.0,94502.0,0.14527166]
[1736397780254,0.01111568,94503.0,94502.0,0.13627166]
[1736397780585,0.01111568,94503.0,94502.0,0.14227166]
[1736397780810,0.01111568,94503.0,94502.0,0.14527166]
[1736397782569,0.01111568,94503.0,94502.0,0.14632971]
[1736397783403,0.01111568,94503.0,94502.0,0.14332971]
[1736397783606,0.01111568,94503.0,94502.0,0.13732971]
[1736397783924,0.01111568,94503.0,94502.0,0.14632971]
[1736397784083,0.01111568,94503.0,94502.0,0.13432971]
[1736397784503,0.01111568,94503.0,94502.0,0.14632971]
[1736397784908,0.01111568,94503.0,94502.0,0.14527166]
[1736397789544,0.01111568,94503.0,94502.0,0.14227166]
[1736397789739,0.01111568,94503.0,94502.0,0.13327166]
[1736397789959,0.01111568,94503.0,94502.0,0.13727166]
[1736397790358,0.01111568,94503.0,94502.0,0.14627166]
[1736397790478,0.01111568,94503.0,94502.0,0.14227166]
[1736397790889,0.01111568,94503.0,94502.0,0.13727166]
[1736397791274,0.01111568,94503.0,94502.0,0.14627166]
[1736397808038,0.0514929,94528.0,94520.0,0.211595]
[1736397808237,0.10429976,94523.0,94520.0,0.211595]
[1736397809410,0.10429976,94523.0,94520.0,0.213595]
[1736397810235,0.12087378,94523.0,94520.0,0.213595]
[1736397820257,0.10429976,94523.0,94520.0,0.213595]
[1736397823526,0.12087373,94523.0,94520.0,0.213595]
[1736397824486,0.09480472,94536.0,94520.0,0.213595]
[1736397824704,0.10429976,94531.0,94520.0,0.28139884]
[1736397825829,0.31587076,94531.0,94520.0,0.27939884]
[1736397829119,0.31587076,94531.0,94520.0,0.211595]
[1736397829293,0.38591183,94531.0,94520.0,0.211595]
[1736397829498,0.38591183,94531.0,94520.0,0.27939884]
[1736397830119,0.38591183,94531.0,94520.0,0.211595]
[1736397830338,0.38591183,94531.0,94520.0,0.27939884]
[1736397836585,0.38591183,94531.0,94520.0,0.211595]
[1736397836789,0.211575,94529.0,94520.0,0.27939884]
[1736397837016,0.10429976,94528.0,94520.0,0.27939884]
[1736397842581,0.01657219,94527.0,94520.0,0.27939884]
[1736397843051,0.10429976,94528.0,94520.0,0.27939884]
[1736397844821,0.10429976,94528.0,94521.0,0.0798]
[1736397845111,0.07775861,94527.0,94521.0,0.0798]
[1736397853901,0.211587,94524.0,94515.0,0.0793]
[1736397854115,0.2116,94518.0,94517.0,5.001e-05]
[1736397854315,0.21159,94522.0,94517.0,5.001e-05]
[1736397854506,0.1436646,94521.0,94517.0,5.001e-05]
[1736397854826,0.10429976,94521.0,94517.0,5.001e-05]
[1736397855048,0.211595,94520.0,94517.0,5.001e-05]
[1736397855257,0.10429976,94519.0,94517.0,5.001e-05]
[1736397855575,0.10429976,94519.0,94517.0,0.00205001]
[1736397856004,0.10429976,94519.0,94517.0,5.001e-05]
[1736397856207,0.15704824,94519.0,94517.0,0.00105001]
[1736397856614,0.15704824,94519.0,94517.0,5.001e-05]
[1736397856816,0.15704824,94519.0,94517.0,0.00105001]
[1736397858337,0.15704824,94519.0,94517.0,5.001e-05]
[1736397858338,0.211599,94518.0,94517.0,5.001e-05]
[1736397858525,0.31589876,94518.0,94517.0,5.001e-05]
[1736397858726,0.37499646,94518.0,94517.0,5.001e-05]
[1736397859243,0.10429976,94518.0,94517.0,5.001e-05]
[1736397860454,0.12087366,94518.0,94517.0,5.001e-05]
[1736397861656,0.10429976,94518.0,94517.0,5.001e-05]
[1736397866082,0.10429976,94518.0,94517.0,0.07765001]
[1736397869525,0.10429976,94518.0,94517.0,5.001e-05]
[1736397870266,0.15812191,94518.0,94517.0,5.001e-05]
[1736397870955,0.27062191,94518.0,94517.0,5.001e-05]
[1736397871338,0.21679976,94518.0,94517.0,5.001e-05]
[1736397871573,0.23337504,94518.0,94517.0,5.001e-05]
[1736397872674,0.25637504,94518.0,94517.0,5.001e-05]
[1736397874375,0.25737504,94518.0,94517.0,5.001e-05]
[1736397874527,0.24079976,94518.0,94517.0,5.001e-05]
[1736397874726,0.33695596,94518.0,94517.0,5.001e-05]
[1736397875282,0.46152106,94518.0,94517.0,5.001e-05]
[1736397875513,0.46252106,94518.0,94517.0,5.001e-05]
[1736397876011,0.27215596,94518.0,94517.0,5.001e-05]
[1736397876823,0.41490308,94518.0,94517.0,5.001e-05]
[1736397877359,0.56490308,94518.0,94517.0,5.001e-05]
[1736397877754,0.42215596,94518.0,94517.0,5.001e-05]
[1736397878335,0.4704843,94518.0,94517.0,5.001e-05]
[1736397878776,0.4704843,94518.0,94517.0,0.00257001]
[1736397878992,0.5362843,94518.0,94517.0,0.00257001]
[1736397879777,0.77279646,94518.0,94517.0,0.00257001]
[1736397880299,0.77279646,94518.0,94517.0,0.00357001]
[1736397880644,0.5342843,94518.0,94517.0,0.00357001]
[1736397880862,0.6342843,94518.0,94517.0,0.00357001]
[1736397881553,0.65086258,94518.0,94517.0,0.00357001]
[1736397882362,0.65086258,94518.0,94517.0,0.00257001]
[1736397882784,0.65986258,94518.0,94517.0,0.00357001]
[1736397882987,0.65086258,94518.0,94517.0,0.00257001]
[1736397883331,0.211673,94485.0,94484.0,0.0804]
[1736397883513,0.10429976,94485.0,94484.0,0.08045001]
[1736397883920,0.12087909,94485.0,94484.0,0.08045001]
[1736397885545,0.10429976,94485.0,94484.0,0.08445001]
[1736397885726,0.10429976,94485.0,94484.0,0.08245001]
[1736397886023,0.18857447,94485.0,94484.0,0.08245001]
[1736397886227,0.18957447,94485.0,94484.0,0.08545001]
[1736397886430,0.18857447,94485.0,94484.0,0.08045001]
[1736397886658,0.18857447,94485.0,94484.0,0.08645001]
[1736397887052,0.18857447,94485.0,94484.0,0.08445001]
[1736397887249,0.19917893,94485.0,94484.0,0.08445001]
[1736397887473,0.19917893,94485.0,94484.0,0.08645001]
[1736397889266,0.19905161,94485.0,94484.0,0.08645001]
[1736397891010,0.19905161,94485.0,94484.0,0.00605001]
[1736397892171,0.19905161,94485.0,94484.0,0.00205001]
[1736397892307,0.20205161,94485.0,94484.0,5.001e-05]
[1736397892513,0.20305161,94485.0,94484.0,5.001e-05]
[1736397893278,0.21963254,94485.0,94484.0,5.001e-05]
[1736397893477,0.21963254,94485.0,94474.0,0.05823081]
[1736397893677,0.211678,94483.0,94474.0,0.05823081]
[1736397893887,0.211682,94481.0,94474.0,0.05823081]
[1736397894046,0.211687,94479.0,94474.0,0.05823081]
[1736397894254,0.10429976,94478.0,94474.0,0.05823081]
[1736397896084,0.10429976,94478.0,94474.0,0.05923081]
[1736397896284,0.05276648,94477.0,94474.0,0.05923081]
[1736397896506,0.10429976,94476.0,94474.0,0.05923081]
[1736397898184,0.10429976,94476.0,94474.0,0.05823081]
[1736397898547,0.10429976,94476.0,94474.0,0.05923081]
[1736397899376,0.211696,94475.0,94474.0,0.05923081]
[1736397899587,0.37404068,94475.0,94474.0,0.05923081]
[1736397900364,0.211678,94483.0,94474.0,0.05923081]
[1736397900577,0.14334806,94504.0,94476.0,0.076]
[1736397900794,0.211668,94488.0,94480.0,0.06780384]
[1736397901045,0.211671,94486.0,94481.0,0.0823]
[1736397901218,0.10429976,94485.0,94481.0,0.0823]
[1736397901550,0.05276388,94484.0,94481.0,0.0823]
[1736397901749,0.15706364,94484.0,94481.0,0.0823]
[1736397902767,0.10429976,94484.0,94481.0,0.0823]
[1736397903009,0.10529976,94484.0,94481.0,0.0823]
[1736397903536,0.10429976,94484.0,94481.0,0.0823]
[1736397904829,0.211678,94483.0,94481.0,0.0823]
[1736397906341,0.211678,94483.0,94481.0,0.0833]
[1736397906549,0.0538101,94482.0,94481.0,0.0833]
[1736397909107,0.0538101,94482.0,94481.0,0.0823]
[1736397909526,0.0538101,94482.0,94481.0,0.0833]
[1736397910507,0.15810986,94482.0,94481.0,0.0833]
[1736397910769,0.15810986,94482.0,94481.0,0.001]
[1736397911778,0.211693,94476.0,94475.0,0.0809]
[1736397912027,0.39696711,94476.0,94475.0,0.0809]
[1736397913412,0.39696711,94476.0,94475.0,0.0829]
[1736397913620,0.39696711,94476.0,94475.0,0.0809]
[1736397915077,0.39696711,94476.0,94475.0,0.0839]
[1736397915284,0.39696711,94476.0,94475.0,0.0819]
[1736397915464,0.39696711,94476.0,94475.0,0.0809]
[1736397915675,0.39696711,94476.0,94475.0,0.0819]
[1736397918537,0.39696711,94476.0,94475.0,0.0809]
[1736397919135,0.39696711,94476.0,94475.0,0.0819]
[1736397919998,0.40784963,94476.0,94475.0,0.0819]
[1736397921610,0.42443035,94476.0,94475.0,0.0819]
[1736397923058,0.42443035,94476.0,94475.0,0.0809]
[1736397923443,0.42443035,94476.0,94475.0,0.0819]
[1736397925537,0.40784963,94476.0,94475.0,0.0819]
[1736397928429,0.0538101,94482.0,94475.0,0.0819]
[1736397928637,0.10429976,94481.0,94475.0,0.0819]
[1736397929000,0.10429976,94481.0,94475.0,0.0809]
[1736397929210,0.211685,94480.0,94475.0,0.0809]
[1736397929365,0.211685,94480.0,94475.0,0.0819]
[1736397929566,0.05920555,94479.0,94475.0,0.0819]
[1736397929774,0.05920555,94479.0,94475.0,0.0809]
[1736397932026,0.22109935,94478.0,94475.0,0.0809]
[1736397932492,0.211693,94476.0,94475.0,0.0809]
[1736397932669,0.31599276,94476.0,94475.0,0.0809]
[1736397932866,0.39035815,94476.0,94475.0,0.0809]
[1736397933201,0.39035815,94476.0,94475.0,0.0819]
[1736397933554,0.39035815,94476.0,94475.0,0.0809]
[1736397933995,0.39035815,94476.0,94475.0,0.0829]
[1736397934427,0.17866515,94476.0,94475.0,0.0829]
[1736397935434,0.11365507,94476.0,94475.0,0.0839]
[1736397935647,0.00935531,94476.0,94475.0,0.13557166]
[1736397935872,0.0538101,94482.0,94475.0,0.05467166]
[1736397936086,0.0538101,94482.0,94476.0,0.0772]
[1736397936285,0.00935209,94481.0,94476.0,0.0772]
[1736397936521,0.04633728,94481.0,94476.0,0.0772]
[1736397940243,0.04633728,94481.0,94476.0,0.0802]
[1736397941013,0.04633728,94481.0,94476.0,0.0782]
[1736397941218,0.00935209,94481.0,94476.0,0.0782]
[1736397941434,0.00935209,94481.0,94476.0,0.0792]
[1736397941611,0.009358,94480.0,94476.0,0.0792]
[1736397941821,0.21167,94487.0,94476.0,0.0792]
[1736397942021,0.1998376,94486.0,94477.0,0.06780384]
[1736397942257,0.1998376,94486.0,94478.0,0.079]
[1736397943074,0.211673,94485.0,94478.0,0.079]
[1736397943281,0.10429976,94484.0,94478.0,0.079]
[1736397943433,0.11365783,94484.0,94478.0,0.079]
[1736397943642,0.0729076,94483.0,94478.0,0.079]
[1736397943834,0.00935803,94482.0,94478.0,0.079]
[1736397944966,0.00935803,94482.0,94478.0,0.08]
[1736397945783,0.00935803,94482.0,94478.0,0.079]
[1736397947489,0.00935803,94482.0,94478.0,0.08]
[1736397947675,0.07049281,94481.0,94478.0,0.08]
[1736397948342,0.009358,94480.0,94478.0,0.08]
[1736397948841,0.009358,94480.0,94478.0,0.079]
[1736397949017,0.10429976,94484.0,94478.0,0.081]
[1736397949463,0.00935805,94483.0,94478.0,0.079]
[1736397949698,0.03362035,94482.0,94478.0,0.08]
[1736397950035,0.00935802,94481.0,94478.0,0.079]
[1736397950835,0.00935802,94481.0,94478.0,0.081]
[1736397951028,0.00935802,94481.0,94478.0,0.079]
[1736397951368,0.00935802,94481.0,94478.0,0.081]
[1736397951568,0.06656479,94480.0,94478.0,0.081]
[1736397951992,0.00935798,94479.0,94478.0,0.081]
[1736397952429,0.00935798,94479.0,94478.0,0.082]
[1736397952623,0.00935798,94479.0,94478.0,0.08]
[1736397953094,0.00935798,94479.0,94478.0,0.079]
[1736397953248,0.05356825,94479.0,94478.0,0.079]
[1736397953446,0.05356825,94479.0,94478.0,0.08]
[1736397954217,0.05356825,94479.0,94478.0,0.082]
[1736397954645,0.05356825,94479.0,94478.0,0.08]
[1736397954861,0.05356825,94479.0,94478.0,0.082]
[1736397956634,0.15786801,94479.0,94478.0,0.003]
[1736397957624,0.15786801,94479.0,94478.0,0.001]
[1736397957979,0.15786801,94479.0,94478.0,0.003]
[1736397958413,0.15786801,94479.0,94478.0,0.002]
[1736397958836,0.15786801,94479.0,94478.0,0.001]
[1736397959043,0.15786801,94479.0,94478.0,0.003]
[1736397959335,0.15786801,94479.0,94478.0,0.002]
[1736397959653,0.15786801,94479.0,94478.0,0.003]
[1736397960022,0.15786801,94479.0,94478.0,0.002]
[1736397960445,0.15786801,94479.0,94472.0,0.0822]
[1736397960830,0.16684064,94478.0,94472.0,0.0822]
[1736397961202,0.00935456,94477.0,94472.0,0.0822]
[1736397961427,0.11365432,94477.0,94472.0,0.0822]
[1736397963650,0.11365432,94477.0,94472.0,0.0832]
[1736397963852,0.11365432,94477.0,94472.0,0.0822]
[1736397964030,0.06879462,94476.0,94472.0,0.0822]
[1736397964435,0.00935454,94475.0,94472.0,0.0842]
[1736397965496,0.00935454,94475.0,94474.0,0.17727166]
[1736397965701,0.09501972,94487.0,94484.0,0.26334666]
[1736397965910,0.09501972,94487.0,94486.0,0.12897166]
[1736397966332,0.01053918,94509.0,94486.0,0.12897166]
[1736397966333,0.09501972,94488.0,94486.0,0.05167166]
[1736397966504,0.09501972,94488.0,94487.0,0.28142993]
[1736397966707,0.09501972,94488.0,94487.0,0.32837166]
[1736397967286,0.0951678,94509.0,94489.0,0.048]
[1736397967577,0.04279074,94508.0,94507.0,0.211624]
[1736397967741,0.0951678,94509.0,94507.0,0.290324]
[1736397968236,0.00014808,94509.0,94508.0,0.09967166]
[1736397968681,0.00014808,94509.0,94508.0,0.17837166]
[1736397969835,0.00014808,94509.0,94508.0,0.18437166]
[1736397970061,0.00014808,94509.0,94508.0,0.18637166]
[1736397970716,0.00014808,94509.0,94508.0,0.18437166]
[1736397971557,0.00014808,94509.0,94508.0,0.17837166]
[1736397971957,0.00114808,94509.0,94508.0,0.18437166]
[1736397972764,0.00014808,94509.0,94508.0,0.18037166]
[1736397973164,0.00114808,94509.0,94508.0,0.18437166]
[1736397973574,0.00114808,94509.0,94508.0,0.18637166]
[1736397973978,0.00114808,94509.0,94508.0,0.18437166]
[1736397974557,0.00114808,94509.0,94508.0,0.18637166]
[1736397974726,0.00014808,94509.0,94508.0,0.18037166]
[1736397974943,0.00014808,94509.0,94508.0,0.18142965]
[1736397975129,0.00114808,94509.0,94508.0,0.18742965]
[1736397975513,0.00014808,94509.0,94508.0,0.18142965]
[1736397975715,0.00114808,94509.0,94508.0,0.19042965]
[1736397976013,0.00114808,94509.0,94508.0,0.18842965]
[1736397976397,0.00114808,94509.0,94508.0,0.19142965]
[1736397977797,0.00114808,94509.0,94508.0,0.20214642]
[1736397977991,0.00114808,94509.0,94508.0,0.20108843]
[1736397978953,0.00114808,94509.0,94508.0,0.18137166]
[1736397978954,0.00014808,94509.0,94508.0,0.18137166]
[1736397979184,0.00114808,94509.0,94508.0,0.1914296]
[1736397979587,0.00114808,94509.0,94508.0,0.1884296]
[1736397979998,0.00114808,94509.0,94508.0,0.1914296]
[1736397988624,0.00114808,94509.0,94508.0,0.14237166]
[1736397989972,0.00114808,94509.0,94508.0,0.012]
[1736397990393,0.12674031,94509.0,94508.0,0.012]
[1736397990599,0.13345081,94509.0,94508.0,0.012]
[1736397991924,0.15002578,94509.0,94508.0,0.012]
[1736397992160,0.15002578,94509.0,94508.0,0.009]
[1736397992369,0.02343355,94509.0,94504.0,0.211631]
[1736397992539,0.02343355,94509.0,94508.0,0.001]
[1736397993008,0.01672305,94509.0,94508.0,0.12767166]
[1736397993141,0.01672305,94509.0,94508.0,0.18047166]
[1736397993341,0.00014808,94509.0,94508.0,0.18047166]
[1736397993548,0.00014808,94509.0,94508.0,0.18152962]
[1736397994085,0.00014808,94509.0,94508.0,0.18252962]
[1736397994585,0.00014808,94509.0,94508.0,0.17852962]
[1736397996097,0.00014808,94509.0,94508.0,0.18152962]
[1736397996301,0.00014808,94509.0,94508.0,0.18252962]
[1736397997281,0.00014808,94509.0,94508.0,0.17852962]
[1736397997497,0.00014808,94509.0,94508.0,0.17752962]
[1736397997710,0.00014808,94509.0,94508.0,0.13267166]
[1736397999022,0.00014808,94509.0,94508.0,0.12767166]
[1736397999368,0.00114808,94509.0,94508.0,0.13767166]
[1736397999596,0.00014808,94509.0,94508.0,0.13067166]
[1736397999782,0.00014808,94509.0,94508.0,0.12767166]
[1736397999983,0.00014808,94509.0,94508.0,0.13367166]
[1736398000179,0.00014808,94509.0,94508.0,0.13567166]
[1736398002662,0.00014808,94509.0,94508.0,0.05967166]
[1736398005168,0.00014808,94509.0,94508.0,0.05767166]
[1736398005326,0.00014808,94509.0,94508.0,0.05167166]
[1736398005552,0.00114808,94509.0,94508.0,0.05967166]
[1736398008587,0.00114808,94509.0,94508.0,0.14077166]
[1736398009005,0.00014808,94509.0,94508.0,0.13477166]
[1736398009207,0.00114808,94509.0,94508.0,0.14177166]
[1736398009380,0.00114808,94509.0,94508.0,0.13977166]
[1736398009790,0.00114808,94509.0,94508.0,0.14177166]
[1736398010566,0.00114808,94509.0,94508.0,0.54672936]
[1736398010767,0.00114808,94509.0,94508.0,0.54567142]
[1736398011370,0.00114808,94509.0,94508.0,0.71830182]
[1736398011617,0.00114808,94509.0,94508.0,0.68550222]
[1736398011837,0.00114808,94509.0,94508.0,0.72028998]
[1736398012017,0.00114808,94509.0,94508.0,0.82028998]
[1736398012229,0.00014808,94509.0,94508.0,0.67145918]
[1736398012424,0.00014808,94509.0,94508.0,0.67645918]
[1736398012851,0.00014808,94509.0,94508.0,0.68245918]
[1736398013311,8e-08,94509.0,94508.0,0.69845918]
[1736398013685,8e-08,94509.0,94508.0,0.99214582]
[1736398014246,8e-08,94509.0,94508.0,0.70745918]
[1736398014584,8e-08,94509.0,94508.0,0.70145918]
[1736398014819,8e-08,94509.0,94508.0,0.70745918]
[1736398015020,8e-08,94509.0,94508.0,0.69845918]
[1736398015338,8e-08,94509.0,94508.0,0.70745918]
[1736398015971,8e-08,94509.0,94508.0,0.67467142]
[1736398016366,8e-08,94509.0,94508.0,0.60671142]
[1736398017394,8e-08,94509.0,94508.0,0.84253182]
[1736398019047,8e-08,94509.0,94508.0,0.60671142]
[1736398020375,8e-08,94509.0,94508.0,0.45167142]
[1736398021695,8e-08,94509.0,94508.0,0.59317893]
[1736398021901,0.01657111,94509.0,94508.0,0.59317893]
[1736398023655,0.01657111,94509.0,94508.0,0.43927917]
[1736398024400,0.01657111,94509.0,94508.0,0.35817917]
[1736398024536,0.01657111,94509.0,94508.0,0.35217917]
[1736398024744,0.01657111,94509.0,94508.0,0.21067166]
[1736398025100,0.01657111,94509.0,94508.0,0.20167166]
[1736398025305,0.01657111,94509.0,94508.0,0.20567166]
[1736398025510,0.01657111,94509.0,94508.0,0.21367166]
[1736398025886,0.01657111,94509.0,94508.0,0.20567166]
[1736398026510,0.01657111,94509.0,94508.0,0.21467166]
[1736398027147,0.01657111,94509.0,94508.0,0.21067166]
[1736398027382,8e-08,94509.0,94508.0,0.21367166]
[1736398031699,0.01657199,94509.0,94508.0,0.21367166]
[1736398034025,0.01657199,94509.0,94508.0,0.29117166]
[1736398034661,0.01657199,94509.0,94508.0,0.39547142]
[1736398034861,0.01657199,94509.0,94508.0,0.44487142]
[1736398035437,0.01657199,94509.0,94508.0,0.54487142]
[1736398035862,0.01657199,94509.0,94508.0,0.53587142]
[1736398036256,0.01657199,94509.0,94508.0,0.7335481]
[1736398036682,8e-08,94509.0,94508.0,0.7335481]
[1736398036884,8e-08,94509.0,94508.0,0.7305481]
[1736398037091,8e-08,94509.0,94508.0,0.54187142]
[1736398037310,8e-08,94509.0,94508.0,0.54487142]
[1736398037533,8e-08,94509.0,94508.0,0.64487142]
[1736398037750,8e-08,94509.0,94508.0,0.64187142]
[1736398037966,8e-08,94509.0,94508.0,0.64787142]
[1736398038178,8e-08,94509.0,94508.0,0.63887142]
[1736398039067,8e-08,94509.0,94508.0,0.64787142]
[1736398042040,8e-08,94509.0,94508.0,0.67087142]
[1736398042868,8e-08,94509.0,94508.0,0.7036291]
[1736398043225,8e-08,94509.0,94508.0,0.6806291]
[1736398043451,0.01657016,94509.0,94508.0,0.64787142]
[1736398043667,0.01657016,94509.0,94508.0,0.39619976]
[1736398043838,0.01657016,94509.0,94508.0,0.2425]
[1736398044040,0.01657016,94509.0,94508.0,0.06667166]
[1736398044528,0.01657016,94509.0,94508.0,0.06772958]
[1736398044981,0.01657016,94509.0,94508.0,0.06172958]
[1736398045457,0.01657016,94509.0,94508.0,0.06772958]
[1736398045672,0.01657016,94509.0,94508.0,0.05872958]
[1736398045895,0.01657016,94509.0,94508.0,0.06667166]
[1736398046122,0.01657016,94509.0,94508.0,0.06772959]
[1736398046654,0.01657016,94509.0,94508.0,0.05767166]
[1736398046853,8e-08,94509.0,94508.0,0.05767166]
[1736398047078,0.03504715,94513.0,94510.0,0.26328866]
[1736398047301,0.03509713,94513.0,94510.0,0.211617]
[1736398047476,0.03509713,94513.0,94508.0,0.05567166]
[1736398047677,0.0472,94512.0,94508.0,0.05567166]
[1736398047919,0.00701347,94511.0,94508.0,0.05167166]
[1736398048118,0.00701347,94511.0,94508.0,0.05467166]
[1736398048501,0.00701347,94511.0,94510.0,0.05167166]
[1736398048978,0.0472,94512.0,94509.0,0.05167166]
[1736398049233,0.01595376,94511.0,94508.0,0.05367166]
[1736398049467,0.01595376,94511.0,94508.0,0.06267166]
[1736398049676,0.01595376,94511.0,94508.0,0.05367166]
[1736398050167,0.01595376,94511.0,94510.0,0.004]
[1736398050349,0.01595376,94511.0,94508.0,0.05167166]
[1736398050499,0.01595376,94511.0,94510.0,0.001]
[1736398051133,0.01595376,94511.0,94508.0,0.05567166]
[1736398051334,0.00700564,94511.0,94510.0,0.001]
[1736398051719,0.0472,94512.0,94510.0,0.001]
[1736398051927,0.00695232,94511.0,94508.0,0.05567166]
[1736398052773,0.00695232,94511.0,94508.0,0.05167166]
[1736398053164,0.00695232,94511.0,94510.0,0.003]
[1736398053715,0.00695232,94511.0,94508.0,0.05167166]
[1736398053914,0.00695232,94511.0,94509.0,0.21162]
[1736398054096,4.998e-05,94513.0,94509.0,0.21162]
[1736398054435,4.998e-05,94513.0,94509.0,0.42324]
[1736398054735,4.998e-05,94513.0,94509.0,0.21162]
[1736398055584,4.998e-05,94513.0,94508.0,0.05167166]
[1736398055993,0.00695228,94512.0,94508.0,0.05167166]
[1736398056173,4.998e-05,94513.0,94508.0,0.05167166]
[1736398056572,4.998e-05,94513.0,94510.0,0.002]
[1736398057006,4.998e-05,94513.0,94509.0,0.211619]
[1736398057710,4.998e-05,94513.0,94511.0,0.211615]
[1736398058856,4.998e-05,94513.0,94509.0,0.211619]
[1736398059597,0.0259487,94513.0,94509.0,0.211619]
[1736398059801,4.998e-05,94513.0,94509.0,0.211619]
[1736398060028,4.998e-05,94513.0,94509.0,0.423238]
[1736398061363,4.998e-05,94513.0,94509.0,0.426238]
[1736398061610,4.998e-05,94513.0,94509.0,0.424238]
[1736398061842,4.998e-05,94513.0,94509.0,0.426238]
[1736398062048,4.998e-05,94513.0,94509.0,0.423238]
[1736398062258,4.998e-05,94513.0,94509.0,0.426238]
[1736398063545,4.998e-05,94513.0,94509.0,0.423238]
[1736398063785,4.998e-05,94513.0,94509.0,0.424238]
[1736398064024,4.998e-05,94513.0,94509.0,0.427238]
[1736398064262,4.998e-05,94513.0,94509.0,0.212619]
[1736398064918,4.998e-05,94513.0,94509.0,0.211619]
[1736398065170,4.998e-05,94513.0,94509.0,0.215619]
[1736398065373,4.998e-05,94513.0,94509.0,0.212619]
[1736398066407,4.998e-05,94513.0,94509.0,0.211619]
[1736398066816,4.998e-05,94513.0,94509.0,0.212619]
[1736398067035,4.998e-05,94513.0,94509.0,0.215619]
[1736398067245,4.998e-05,94513.0,94509.0,0.427238]
[1736398067498,4.998e-05,94513.0,94509.0,0.424238]
[1736398067903,4.998e-05,94513.0,94509.0,0.427238]
[1736398068202,4.998e-05,94513.0,94509.0,0.423238]
[1736398068556,7.94e-06,94514.0,94509.0,0.423238]
[1736398068778,7.94e-06,94514.0,94509.0,0.427238]
[1736398069058,7.94e-06,94514.0,94509.0,0.424238]
[1736398070069,7.94e-06,94514.0,94509.0,0.423238]
[1736398070503,7.94e-06,94514.0,94509.0,0.215619]
[1736398070990,0.00694262,94513.0,94509.0,0.211619]
[1736398071193,0.00694262,94513.0,94509.0,0.212619]
[1736398071723,0.03352307,94513.0,94509.0,0.211619]
[1736398071882,0.03352307,94513.0,94509.0,0.214619]
[1736398072080,0.03352307,94513.0,94509.0,0.211619]
[1736398072281,0.03352307,94513.0,94509.0,0.214619]
[1736398072491,0.00694262,94513.0,94509.0,0.214619]
[1736398072647,7.94e-06,94514.0,94509.0,0.214619]
[1736398073064,7.94e-06,94514.0,94509.0,0.215619]